bitfinex/quotes_ETHUSD_20250426
["timestamp","ask_amount","ask_price","bid_price","bid_amount"]
[1745690619494,0.5,1804.4,1804.3,5.71736231]
[1745690619797,5.102,1804.4,1804.3,5.71736231]
[1745690620095,5.102,1804.4,1804.3,6.99292913]
[1745690625731,5.102,1804.4,1804.3,8.28364168]
[1745690644933,0.5,1804.4,1804.3,8.28364168]
[1745690645245,0.5,1804.4,1804.3,8.10859494]
[1745690645446,0.5,1804.4,1804.3,8.28149956]
[1745690658569,1.2582,1804.4,1804.3,5.71522019]
[1745690658853,1.2582,1804.4,1804.3,0.17290462]
[1745690661675,1.2582,1804.4,1804.3,5.71522019]
[1745690661855,0.5,1804.4,1804.3,7.00593274]
[1745690662040,0.5,1804.4,1804.3,9.05456435]
[1745690662442,0.5,1804.4,1804.3,10.4006909]
[1745690662766,0.5,1804.4,1804.3,9.10997835]
[1745690663267,4.599,1804.9,1804.8,5.54061644]
[1745690663564,4.599,1804.9,1804.8,7.00267077]
[1745690663768,4.599,1804.9,1804.8,6.76137402]
[1745690673082,21.239,1805.2,1805.1,5.53985928]
[1745690673456,21.239,1805.2,1805.1,5.70842314]
[1745690674581,4.598,1805.2,1805.1,5.70842314]
[1745690676772,4.597,1805.4,1805.3,5.53913471]
[1745690677283,4.597,1805.4,1805.3,5.70648354]
[1745690677588,0.7551,1805.7,1805.5,5.53852568]
[1745690677792,4.597,1805.6,1805.5,5.53852568]
[1745690679982,4.597,1805.6,1805.5,5.70512249]
[1745690683461,4.597,1805.6,1805.5,6.48282249]
[1745690684864,4.597,1805.6,1805.5,7.16010292]
[1745690685196,4.597,1805.6,1805.5,8.43000641]
[1745690685860,4.597,1805.6,1805.5,7.75272598]
[1745690689299,17.4447,1805.9,1805.7,5.53786861]
[1745690689495,4.596,1805.8,1805.7,5.53786861]
[1745690691987,0.7997,1805.7,1805.5,6.80825546]
[1745690692191,0.7997,1805.7,1805.5,5.53835197]
[1745690692499,0.7997,1805.7,1805.4,5.53877124]
[1745690693471,0.7997,1805.7,1805.5,5.53849696]
[1745690694802,0.7997,1805.7,1805.6,0.16087073]
[1745690696903,0.7997,1805.7,1805.4,5.53874364]
[1745690697108,0.7997,1805.7,1805.6,0.16087073]
[1745690697306,0.7997,1805.7,1805.5,0.1603503]
[1745690697475,0.7997,1805.7,1805.4,5.53874364]
[1745690697676,0.7997,1805.7,1805.6,0.1603503]
[1745690697876,0.7997,1805.7,1805.4,5.53874364]
[1745690698095,0.7997,1805.7,1805.6,0.1603503]
[1745690698296,0.7997,1805.7,1805.4,11.07748177]
[1745690698499,0.7997,1805.7,1805.6,0.1603503]
[1745690698674,0.7997,1805.7,1805.5,5.53857397]
[1745690699006,0.7997,1805.7,1805.6,0.16081288]
[1745690703829,5.4133,1805.8,1805.6,0.16081288]
[1745690704832,5.4133,1805.8,1805.6,5.69909937]
[1745690705201,4.596,1805.8,1805.6,5.69909937]
[1745690705397,4.596,1805.8,1805.6,6.89826878]
[1745690705599,4.596,1805.8,1805.7,5.53801849]
[1745690705929,4.596,1805.8,1805.7,6.45245315]
[1745690708436,0.8173,1806.2,1805.8,5.53771181]
[1745690708613,16.629,1806.3,1806.1,5.53656516]
[1745690708614,22.0413,1806.3,1806.1,5.53656516]
[1745690708810,22.0413,1806.3,1806.1,11.0731918]
[1745690709039,22.0413,1806.3,1806.2,0.15982996]
[1745690709241,21.224,1806.3,1806.2,5.53648543]
[1745690709406,21.224,1806.3,1806.2,5.69631539]
[1745690710341,21.224,1806.3,1806.2,0.15982996]
[1745690710544,22.035,1806.3,1806.2,0.15982996]
[1745690710714,22.035,1806.3,1806.0,5.53683094]
[1745690711044,22.035,1806.3,1806.0,6.69961806]
[1745690711218,22.035,1806.3,1806.1,0.15491676]
[1745690711409,22.035,1806.3,1806.1,5.69167419]
[1745690713245,21.224,1806.3,1806.1,5.69151956]
[1745690713739,21.224,1806.3,1806.2,5.53648543]
[1745690714112,21.224,1806.3,1806.2,6.65928593]
[1745690714308,21.224,1806.3,1806.2,1.27771726]
[1745690714513,21.224,1806.3,1806.2,0.15491676]
[1745690714910,21.224,1806.3,1806.0,6.69974272]
[1745690715110,21.224,1806.3,1806.2,0.15491676]
[1745690715310,21.224,1806.3,1806.0,12.23664697]
[1745690715553,21.224,1806.3,1806.2,0.15491676]
[1745690716015,21.224,1806.3,1806.0,6.69964298]
[1745690716215,21.224,1806.3,1806.1,0.15491676]
[1745690718450,21.224,1806.3,1806.0,5.53681085]
[1745690718649,21.224,1806.3,1806.1,0.15491676]
[1745690718851,21.224,1806.3,1806.1,11.2283117]
[1745690719950,21.224,1806.3,1806.2,5.53648543]
[1745690722140,4.595,1806.3,1806.2,5.53648543]
[1745690722743,4.595,1806.3,1806.2,6.34078543]
[1745690722949,0.8263,1806.7,1806.5,5.53552839]
[1745690722950,4.594,1806.6,1806.5,5.53552839]
[1745690724464,0.1,1806.9,1806.5,3.0]
[1745690724628,0.1,1806.9,1806.8,5.53464688]
[1745690724828,0.1,1806.9,1806.8,5.68280467]
[1745690725929,0.1,1806.9,1806.8,0.14815779]
[1745690726430,0.1,1806.9,1806.8,5.68280467]
[1745690726625,0.1,1806.9,1806.8,6.80456146]
[1745690726956,0.1,1806.9,1806.8,7.59016146]
[1745690733946,0.1,1806.9,1806.8,1.26991458]
[1745690734262,0.1,1806.9,1806.8,6.80456146]
[1745690739154,0.1,1806.9,1806.8,7.56176146]
[1745690739354,0.1,1806.9,1806.8,8.29437882]
[1745690740047,0.1,1806.9,1806.8,8.23904189]
[1745690741188,0.1,1806.9,1806.8,11.23904189]
[1745690742596,0.1,1806.9,1806.8,11.29437525]
[1745690742755,0.1,1806.9,1806.8,11.23904189]
[1745690743381,0.1,1806.9,1806.8,11.65300831]
[1745690748172,0.1,1806.9,1806.8,10.56176146]
[1745690748689,0.1,1806.9,1806.8,1.26991458]
[1745690748690,0.8559,1806.9,1806.8,1.26991458]
[1745690748879,0.8559,1806.9,1806.8,0.14815779]
[1745690749480,0.1,1806.9,1806.8,5.68280467]
[1745690749680,0.1,1806.9,1806.8,6.3600851]
[1745690749916,0.1,1806.9,1806.8,9.78296074]
[1745690750203,0.1,1806.9,1806.8,10.59979458]
[1745690750508,0.1,1806.9,1806.8,12.15793529]
[1745690750999,1e-08,1806.9,1806.8,12.15793529]
[1745690751198,1e-08,1806.9,1806.8,12.70793529]
[1745690755003,1e-08,1806.9,1806.8,18.70793529]
[1745690757282,4.59,1807.6,1807.5,5.53250345]
[1745690757586,0.814,1807.8,1807.7,5.53189135]
[1745690758004,0.814,1807.8,1807.7,5.67150535]
[1745690758501,5.43737865,1807.9,1807.8,5.53158535]
[1745690758697,0.84737865,1807.9,1807.8,5.53158535]
[1745690759081,0.84737865,1807.9,1807.8,5.67119935]
[1745690759282,0.07067865,1807.9,1807.8,6.79150842]
[1745690760332,0.8258,1808.2,1808.1,5.53066755]
[1745690760677,0.8258,1808.2,1808.1,0.1315961]
[1745690760907,0.8258,1808.2,1808.0,5.53083609]
[1745690761098,0.8258,1808.2,1808.1,0.1315961]
[1745690762015,0.8258,1808.2,1807.9,5.53122207]
[1745690762318,0.8258,1808.2,1808.1,0.1315961]
[1745690762319,1.52913236,1808.2,1808.1,0.1315961]
[1745690762502,1.52913236,1808.2,1807.9,5.53122207]
[1745690762503,0.8258,1808.1,1807.9,5.53122207]
[1745690763008,0.8258,1808.1,1807.9,11.06228474]
[1745690763214,0.8258,1808.1,1807.9,5.53106267]
[1745690763511,5.4148,1808.1,1807.9,5.53106267]
[1745690764520,6.34422316,1808.0,1807.2,6.97313984]
[1745690764814,0.8131,1807.9,1807.2,1.43988043]
[1745690765023,0.8131,1807.9,1807.4,5.53265417]
[1745690765178,0.8131,1807.8,1807.4,5.53265417]
[1745690765385,0.8131,1807.6,1807.4,5.53265417]
[1745690765979,0.8131,1807.6,1807.4,5.53262541]
[1745690766318,0.8131,1807.6,1807.5,5.53250345]
[1745690766531,0.8131,1807.6,1807.4,5.53262541]
[1745690768533,0.8131,1807.6,1807.1,8.53342189]
[1745690768692,0.8131,1807.6,1806.8,2.37607455]
[1745690768693,1.49038043,1807.5,1806.8,2.37607455]
[1745690768897,0.8039,1807.3,1806.9,5.53410697]
[1745690769094,0.8039,1807.3,1807.0,5.58924042]
[1745690769293,0.8039,1807.3,1807.0,5.53390547]
[1745690769488,0.8039,1807.3,1807.0,5.53403431]
[1745690769690,0.8039,1807.3,1807.2,5.53342186]
[1745690769896,0.8039,1807.3,1807.2,5.66611361]
[1745690770218,0.8039,1807.3,1807.2,0.13269175]
[1745690770429,0.8039,1807.3,1807.1,6.08697659]
[1745690770620,0.8039,1807.3,1807.2,0.13269175]
[1745690770808,0.8039,1807.3,1807.1,6.08697659]
[1745690770999,0.8039,1807.3,1807.2,0.13269175]
[1745690771200,0.8039,1807.3,1807.1,0.55340343]
[1745690771429,4.589,1807.3,1807.2,0.13269175]
[1745690771603,4.589,1807.3,1806.8,5.53447756]
[1745690771604,0.8039,1807.2,1806.8,5.53447756]
[1745690771809,0.8039,1807.2,1806.9,0.13886377]
[1745690772008,0.8039,1807.2,1806.8,5.53447756]
[1745690772221,0.8039,1807.2,1806.9,0.13886377]
[1745690772422,0.8039,1807.2,1806.9,5.53433463]
[1745690772598,0.8039,1807.2,1807.0,0.13886377]
[1745690775047,7.0421085,1807.1,1807.0,0.13886377]
[1745690775342,7.0421085,1807.1,1806.4,5.53575853]
[1745690775343,0.8311,1806.8,1806.4,5.53575853]
[1745690775535,5.4211,1806.8,1806.4,5.53575853]
[1745690775730,5.4211,1806.8,1806.5,0.14065278]
[1745690776047,5.4211,1806.8,1806.5,5.67619884]
[1745690776347,5.4211,1806.8,1806.5,5.67607631]
[1745690776557,5.4211,1806.8,1806.6,5.53508426]
[1745690776739,5.4211,1806.8,1806.7,5.53495322]
[1745690777245,5.4211,1806.8,1806.7,5.675606]
[1745690779121,5.4211,1806.8,1806.7,0.14065278]
[1745690779444,5.4211,1806.8,1806.6,5.53506374]
[1745690779744,5.4211,1806.8,1806.7,0.14065278]
[1745690780144,5.4211,1806.8,1806.6,5.53506374]
[1745690780329,5.4211,1806.8,1806.7,0.14065278]
[1745690780330,10.95574688,1806.8,1806.7,0.14065278]
[1745690780531,11.49975688,1806.8,1806.7,0.14065278]
[1745690780739,0.833,1806.6,1806.2,5.5362891]
[1745690781045,6.36837604,1806.6,1806.2,5.5362891]
[1745690781204,0.833,1806.5,1806.1,5.63659545]
[1745690781613,6.36871765,1806.5,1806.1,3.1]
[1745690781825,4.591,1806.4,1806.1,3.1]
[1745690782118,0.833,1806.3,1806.1,3.1]
[1745690782655,0.833,1806.3,1806.1,8.63676653]
[1745690783848,0.833,1806.3,1806.2,5.53648543]
[1745690784022,5.4094,1806.4,1806.3,5.53617892]
[1745690784225,4.591,1806.4,1806.3,5.53617892]
[1745690784424,0.8184,1806.8,1806.6,5.53513106]
[1745690784735,0.8184,1806.8,1806.6,5.53504913]
[1745690784934,0.8184,1806.8,1806.7,5.68536336]
[1745690785323,0.8184,1806.8,1806.7,0.15041014]
[1745690785536,0.8184,1806.8,1806.5,5.53545069]
[1745690786056,0.8184,1806.8,1806.6,0.15041014]
[1745690786256,0.8184,1806.8,1806.6,6.25421499]
[1745690786624,0.8184,1806.8,1806.7,5.53495322]
[1745690787038,0.8184,1806.8,1806.7,5.68536336]
[1745690788137,0.8184,1806.8,1806.7,0.15041014]
[1745690788457,0.8184,1806.8,1806.6,6.10369804]
[1745690788754,0.8184,1806.8,1806.7,0.15041014]
[1745690789119,0.8184,1806.8,1806.6,6.10369804]
[1745690789322,0.8184,1806.8,1806.7,0.15041014]
[1745690789521,0.8184,1806.8,1806.6,11.63874108]
[1745690789723,5.3469,1806.9,1806.7,5.68520904]
[1745690790363,5.3469,1806.9,1806.7,6.86409286]
[1745690790665,4.591,1807.0,1806.7,6.86407806]
[1745690792879,4.591,1807.0,1806.7,1.32929396]
[1745690793083,0.7559,1806.9,1806.7,0.15041014]
[1745690793370,0.7559,1806.9,1806.6,5.53514173]
[1745690793526,4.591,1807.0,1806.8,5.68262097]
[1745690793730,5.3469,1807.0,1806.8,5.53463635]
[1745690793931,5.3469,1807.0,1806.9,0.14798462]
[1745690794569,5.3469,1807.0,1806.8,5.53463635]
[1745690794771,5.3469,1807.0,1806.9,0.14798462]
[1745690795447,5.3469,1807.0,1806.8,5.53463635]
[1745690795648,5.3469,1807.0,1806.9,0.1453282]
[1745690795849,5.3469,1807.0,1806.8,5.53463635]
[1745690796047,5.3469,1807.0,1806.9,0.1453282]
[1745690796248,5.3469,1807.0,1806.8,5.53463635]
[1745690796465,5.3469,1807.0,1806.9,0.1453282]
[1745690796673,5.3469,1807.0,1806.8,5.53463635]
[1745690796875,5.3469,1807.0,1806.9,0.1453282]
[1745690797168,5.3469,1807.0,1806.7,5.53481833]
[1745690797372,5.3469,1807.0,1806.9,0.1453282]
[1745690797537,5.3469,1807.0,1806.7,5.53481833]
[1745690797737,5.3469,1807.0,1806.9,0.1453282]
[1745690797964,5.3469,1807.0,1806.6,5.5350193]
[1745690798150,5.3469,1807.0,1806.9,0.1453282]
[1745690798350,5.3469,1807.0,1806.6,5.5350193]
[1745690798561,5.3469,1807.0,1806.9,0.1453282]
[1745690798765,5.3469,1807.0,1806.6,5.5350193]
[1745690799068,10.88093431,1807.0,1806.5,5.53540833]
[1745690799273,10.88093431,1807.0,1806.7,0.1453282]
[1745690799478,10.88093431,1807.0,1806.5,6.71926787]
[1745690799638,10.88093431,1807.0,1806.8,0.1453282]
[1745690799838,10.88093431,1807.0,1806.5,5.53540833]
[1745690800040,10.88093431,1807.0,1806.6,0.1453282]
[1745690801982,10.88093431,1807.0,1806.6,5.68055326]
[1745690803377,10.88093431,1807.0,1806.6,6.24860859]
[1745690804680,5.3469,1807.0,1806.6,6.24860859]
[1745690804853,5.3469,1807.0,1806.6,11.78365936]
[1745690805057,5.3469,1807.0,1806.6,11.78346552]
[1745690805355,5.3469,1807.0,1806.6,6.24841475]
[1745690806044,5.3469,1807.0,1806.6,11.78347565]
[1745690806244,5.3469,1807.0,1806.6,6.24841475]
[1745690806576,5.3469,1807.0,1806.7,5.53487995]
[1745690806952,5.3469,1807.0,1806.8,0.14567462]
[1745690807572,10.8809917,1807.0,1806.8,0.14567462]
[1745690807955,10.8809917,1807.0,1806.6,5.53513461]
[1745690808156,10.8809917,1807.0,1806.9,0.14567462]
[1745690808369,10.8809917,1807.0,1806.6,5.53513461]
[1745690808667,10.8809917,1807.0,1806.9,0.14567462]
[1745690808862,16.4152763,1807.0,1806.5,5.53542897]
[1745690809173,10.8809917,1807.0,1806.9,0.14567462]
[1745690809364,10.8809917,1807.0,1806.5,11.07075442]
[1745690809565,10.8809917,1807.0,1806.9,0.14567462]
[1745690809777,10.8809917,1807.0,1806.6,5.53525742]
[1745690810076,10.8809917,1807.0,1806.9,0.14567462]
[1745690810247,10.8809917,1807.0,1806.6,6.64231861]
[1745690810580,10.8809917,1807.0,1806.7,0.14567462]
[1745690810955,10.8809917,1807.0,1806.6,6.64231861]
[1745690811156,10.8809917,1807.0,1806.8,0.14567462]
[1745690811356,5.3469,1807.0,1806.6,6.64231861]
[1745690811557,5.3469,1807.0,1806.7,6.1990565]
[1745690811757,5.3469,1807.0,1806.7,6.34473112]
[1745690812182,4.591,1807.0,1806.7,0.80990648]
[1745690812366,4.617,1807.1,1806.8,0.8188]
[1745690812569,4.617,1807.1,1807.0,5.53403431]
[1745690812972,4.617,1807.1,1807.0,0.14584783]
[1745690817853,5.3941,1807.1,1806.8,5.95604209]
[1745690818187,5.3941,1807.1,1806.9,0.14446225]
[1745690818553,5.3941,1807.1,1806.8,11.49036081]
[1745690818887,5.3941,1807.1,1806.9,6.68337505]
[1745690819088,5.3941,1807.1,1806.9,6.8278373]
[1745690819596,5.3941,1807.1,1806.9,1.29349833]
[1745690820163,5.3941,1807.1,1806.9,6.82777633]
[1745690821262,5.53403431,1807.0,1806.9,0.14446225]
[1745690821462,6.31113431,1807.0,1806.4,6.310743]
[1745690821797,5.5345722,1806.9,1806.5,0.13815834]
[1745690821962,0.7771,1807.0,1806.5,0.13815834]
[1745690822163,5.5344739,1806.9,1806.5,0.13815834]
[1745690823872,6.31126184,1807.0,1806.6,5.53514778]
[1745690824076,6.31126184,1807.0,1806.6,5.67457556]
[1745690824476,0.7771,1807.0,1806.6,5.67446703]
[1745690824894,0.7771,1807.0,1806.6,6.44936703]
[1745690825096,0.7771,1807.0,1806.7,0.6449367]
[1745690825497,0.7771,1807.0,1806.8,0.13942778]
[1745690825704,6.31115399,1807.0,1806.8,0.13942778]
[1745690825886,6.31115399,1807.0,1806.6,0.7749]
[1745690826093,5.53446076,1806.9,1806.5,5.53533587]
[1745690826288,6.31179592,1806.8,1806.4,0.7749]
[1745690826492,6.31179592,1806.8,1806.4,0.97353082]
[1745690826790,6.31179592,1806.8,1806.4,6.50937209]
[1745690827097,4.602,1806.7,1806.4,6.50937209]
[1745690828300,0.7771,1806.6,1806.4,0.97353082]
[1745690828470,0.7771,1806.6,1806.3,3.0]
[1745690829003,5.5357245,1806.5,1806.1,0.96367665]
[1745690829206,5.5357245,1806.5,1806.1,6.50034134]
[1745690829507,0.7771,1806.6,1806.1,6.50034134]
[1745690829508,6.31255244,1806.6,1806.1,6.50034134]
[1745690829697,6.31255244,1806.6,1806.2,0.14139026]
[1745690829882,6.31255244,1806.6,1806.1,6.50034134]
[1745690830079,6.31255244,1806.6,1806.3,0.14139026]
[1745690830283,6.31255244,1806.6,1806.2,5.53643613]
[1745690830517,5.53556601,1806.5,1806.4,0.14139026]
[1745690830814,5.53556601,1806.5,1806.1,6.50027545]
[1745690830976,5.53556601,1806.5,1806.4,0.14139026]
[1745690831170,6.31255244,1806.6,1806.2,5.53637279]
[1745690831402,0.7771,1806.6,1806.4,0.14139026]
[1745690831608,0.7771,1806.6,1806.2,5.53637279]
[1745690831785,0.7771,1806.6,1806.5,0.14508402]
[1745690831971,0.7771,1806.6,1806.2,5.53637279]
[1745690832171,0.7771,1806.6,1806.5,0.14508402]
[1745690832373,5.53573001,1806.5,1806.1,0.1]
[1745690832674,5.53573001,1806.5,1806.1,0.78612994]
[1745690832981,6.3125545,1806.6,1806.1,6.32279975]
[1745690833192,6.3125545,1806.6,1806.1,6.32270033]
[1745690833403,0.7771,1806.6,1806.2,5.53647637]
[1745690834217,6.31236405,1806.6,1806.2,5.53647637]
[1745690834399,6.31236405,1806.6,1806.2,6.72240534]
[1745690836025,0.7771,1806.6,1806.3,5.5360853]
[1745690836179,0.7771,1806.6,1806.2,6.72230309]
[1745690836379,6.31252202,1806.6,1806.2,6.72230309]
[1745690839917,6.31252202,1806.6,1806.2,1.18592897]
[1745690840240,5.53568754,1806.5,1806.1,6.32267896]
[1745690841232,6.31939593,1806.4,1806.1,0.1]
[1745690841694,4.603,1806.3,1806.1,0.1]
[1745690842903,10.13929042,1806.3,1806.1,0.1]
[1745690843109,4.603,1806.3,1806.1,0.1]
[1745690844365,6.34758543,1806.2,1806.1,0.1]
[1745690844806,6.34758543,1806.2,1806.1,0.24519942]
[1745690845002,6.34758543,1806.2,1806.1,0.1]
[1745690845201,6.34758543,1806.2,1806.1,0.24519942]
[1745690845402,0.8111,1806.2,1806.1,0.1]
[1745690845641,0.8111,1806.2,1806.1,0.24519942]
[1745690845824,0.8111,1806.2,1806.1,0.1]
[1745690846299,0.8111,1806.2,1806.1,0.24635422]
[1745690846703,6.34758543,1806.2,1806.1,0.24635422]
[1745690847006,0.8111,1806.2,1806.1,0.24635422]
[1745690848102,4.603,1806.3,1806.1,5.7831462]
[1745690849536,4.603,1806.3,1806.1,0.24635422]
[1745690850466,10.13932673,1806.3,1806.1,0.24635422]
[1745690851329,4.603,1806.3,1806.1,0.24635422]
[1745690858362,10.13918206,1806.3,1806.1,0.24635422]
[1745690859573,4.603,1806.3,1806.1,0.24635422]
[1745690862172,10.13930681,1806.3,1806.1,0.24635422]
[1745690862477,11.78795009,1806.3,1806.1,0.24635422]
[1745690871882,6.25164328,1806.3,1806.1,0.24635422]
[1745690872086,4.603,1806.3,1806.1,0.24635422]
[1745690873001,4.603,1806.3,1806.2,5.53648543]
[1745690873211,4.603,1806.3,1806.2,0.90950482]
[1745690874504,4.603,1806.3,1806.2,6.44599025]
[1745690877401,16.624,1806.8,1806.5,5.53534818]
[1745690877580,4.593,1806.8,1806.5,6.35366672]
[1745690877779,4.593,1806.8,1806.6,0.14514168]
[1745690878116,0.8031,1806.7,1806.6,0.14514168]
[1745690878277,6.33805322,1806.7,1806.6,0.14514168]
[1745690878465,8.05236979,1806.7,1806.1,0.1]
[1745690878797,6.33903822,1806.4,1806.2,0.13213965]
[1745690879110,4.593,1806.3,1806.1,0.1]
[1745690879270,10.12929083,1806.3,1806.1,0.1]
[1745690883715,4.593,1806.3,1806.1,0.1]
[1745690888737,7.02956586,1806.2,1806.1,0.1]
[1745690890213,7.02956586,1806.2,1806.1,0.224993]
[1745690890756,6.35228543,1806.2,1806.1,0.224993]
[1745690890910,6.35228543,1806.2,1806.1,0.1]
[1745690891245,4.593,1806.3,1806.1,0.224993]
[1745690891553,4.593,1806.3,1806.2,0.124993]
[1745690891719,4.593,1806.3,1806.2,5.53648543]
[1745690892117,4.593,1806.3,1806.2,5.66188177]
[1745690894546,4.593,1806.3,1806.2,6.49438177]
[1745690895656,4.6,1806.6,1806.3,5.53609983]
[1745690896354,4.6,1806.6,1806.4,0.12539634]
[1745690896561,4.55,1806.6,1806.4,0.12539634]
[1745690897447,10.08529796,1806.6,1806.4,0.12539634]
[1745690897649,0.8023,1806.5,1806.4,0.12539634]
[1745690897850,0.8023,1806.5,1806.2,5.53630201]
[1745690898052,0.8023,1806.5,1806.4,0.12539634]
[1745690898253,0.8023,1806.5,1806.2,6.79448103]
[1745690898440,0.8023,1806.5,1806.4,0.12539634]
[1745690898936,6.33786601,1806.5,1806.4,0.12539634]
[1745690899140,5.53637418,1806.3,1806.1,0.1]
[1745690899439,4.6,1806.2,1806.1,0.1]
[1745690903281,4.6,1806.2,1806.1,5.63679198]
[1745690904556,4.6,1806.2,1806.1,0.1]
[1745690904874,4.6,1806.2,1806.1,0.22407122]
[1745690905289,4.6,1806.2,1806.1,6.41885286]
[1745690906305,4.6,1806.2,1806.1,0.88206088]
[1745690909201,4.6,1806.2,1806.1,0.22407122]
[1745690910028,0.8042,1806.5,1806.2,5.53639889]
[1745690910231,4.6,1806.3,1806.1,11.29741897]
[1745690912634,4.6,1806.3,1806.2,5.53648543]
[1745690912833,4.6,1806.3,1806.2,5.66049904]
[1745690913037,4.6,1806.3,1806.2,0.12401361]
[1745690913202,4.6,1806.3,1806.1,11.17316789]
[1745690913402,4.6,1806.3,1806.2,1.2413304]
[1745690915543,5.3513,1806.3,1806.2,0.12401361]
[1745690915835,10.88747892,1806.3,1806.2,0.12401361]
[1745690916057,10.88747892,1806.3,1806.1,0.1]
[1745690916205,10.88747892,1806.3,1806.2,0.12424401]
[1745690916405,10.88747892,1806.3,1806.1,0.1]
[1745690916606,10.88747892,1806.3,1806.2,0.12424401]
[1745690916831,12.52984142,1806.3,1806.1,0.1]
[1745690917142,12.52984142,1806.3,1806.2,0.12424401]
[1745690917438,12.52984142,1806.3,1806.1,0.1]
[1745690917647,12.52984142,1806.3,1806.2,0.12424401]
[1745690917847,6.9936625,1806.3,1806.1,0.1]
[1745690918054,5.3513,1806.3,1806.2,0.1248778]
[1745690918211,5.3513,1806.3,1806.1,0.1]
[1745690918543,5.3513,1806.3,1806.2,0.1248778]
[1745690918847,10.88747892,1806.3,1806.1,0.1]
[1745690919049,10.88747892,1806.3,1806.2,0.1248778]
[1745690919250,10.88747892,1806.3,1806.1,0.1]
[1745690919416,10.88747892,1806.3,1806.2,0.1248778]
[1745690919607,10.88747892,1806.3,1806.1,0.1]
[1745690919812,10.88747892,1806.3,1806.2,0.1248778]
[1745690920253,10.88747892,1806.3,1806.1,0.1]
[1745690920439,10.88747892,1806.3,1806.2,0.1248778]
[1745690920643,10.88747892,1806.3,1806.1,0.1]
[1745690920840,5.3513,1806.3,1806.2,0.1248778]
[1745690921048,5.3513,1806.3,1806.1,0.1]
[1745690921226,5.3513,1806.3,1806.2,0.1248778]
[1745690921621,5.3513,1806.3,1806.1,0.1]
[1745690921821,5.3513,1806.3,1806.2,0.1248778]
[1745690922027,5.3513,1806.3,1806.1,0.1]
[1745690922356,5.3513,1806.3,1806.2,0.1248778]
[1745690922723,5.3513,1806.3,1806.1,0.1]
[1745690923052,5.3513,1806.3,1806.2,0.1248778]
[1745690923355,4.6,1806.3,1806.1,0.1]
[1745690923537,5.53590014,1806.4,1806.2,0.1248778]
[1745690923740,4.605,1806.3,1806.2,0.1248778]
[1745690924221,4.605,1806.3,1806.1,0.1]
[1745690924546,4.605,1806.3,1806.2,0.1248778]
[1745690924941,10.14118026,1806.3,1806.1,0.1]
[1745690925145,10.14118026,1806.3,1806.2,0.1248778]
[1745690925522,10.14118026,1806.3,1806.1,0.1]
[1745690925724,10.14118026,1806.3,1806.2,0.1248778]
[1745690926021,10.14118026,1806.3,1806.1,0.1]
[1745690926231,10.14118026,1806.3,1806.2,0.1248778]
[1745690926444,4.605,1806.3,1806.1,0.1]
[1745690926655,4.605,1806.3,1806.2,0.1248778]
[1745690926832,4.605,1806.3,1806.1,0.1]
[1745690927033,4.605,1806.3,1806.2,0.1248778]
[1745690927234,4.605,1806.3,1806.1,0.1]
[1745690927447,4.605,1806.3,1806.2,0.1248778]
[1745690927645,4.605,1806.3,1806.1,0.1]
[1745690927834,4.605,1806.3,1806.2,0.1248778]
[1745690928047,4.605,1806.3,1806.1,6.83137358]
[1745690928254,4.605,1806.3,1806.2,0.12556913]
[1745690928857,4.605,1806.4,1806.2,6.47902604]
[1745690929069,4.605,1806.4,1806.2,6.47895071]
[1745690929222,4.605,1806.4,1806.3,6.18407399]
[1745690929619,4.605,1806.4,1806.3,6.30964312]
[1745690929846,4.605,1806.4,1806.3,0.7734642]
[1745690930065,4.605,1806.4,1806.3,0.12556913]
[1745690939548,4.605,1806.4,1806.3,5.66174805]
[1745690943001,4.605,1806.4,1806.3,9.45614805]
[1745690943154,4.605,1806.7,1806.6,6.32952943]
[1745690943584,4.605,1806.7,1806.6,6.45308211]
[1745690946876,4.605,1806.7,1806.6,0.12355268]
[1745690951703,4.605,1806.7,1806.6,5.65881228]
[1745690952009,28.18089972,1807.3,1807.0,5.53388828]
[1745690952010,4.593,1807.2,1807.0,5.53388828]
[1745690952176,4.593,1807.2,1807.0,6.30108828]
[1745690952365,4.593,1807.2,1807.1,0.12107583]
[1745690953591,4.593,1807.2,1806.9,5.53416724]
[1745690953791,4.593,1807.2,1807.1,0.12015439]
[1745690953992,4.593,1807.2,1806.9,12.94136438]
[1745690954188,4.593,1807.2,1807.1,0.12015439]
[1745690954406,4.593,1807.2,1807.0,5.53389163]
[1745690954607,4.593,1807.2,1807.1,0.12015439]
[1745690954779,4.593,1807.2,1807.1,5.65388246]
[1745690954979,4.593,1807.2,1807.1,6.98548706]
[1745690956812,4.592,1807.5,1807.2,5.53340217]
[1745690957015,4.592,1807.5,1807.3,5.53299951]
[1745690957200,4.592,1807.5,1807.4,5.53280956]
[1745690957376,4.592,1807.5,1807.4,0.56519851]
[1745690957886,4.592,1807.5,1807.4,0.68437405]
[1745690962413,4.592,1807.5,1807.4,6.21718361]
[1745690965316,4.592,1807.5,1807.4,0.68437405]
[1745690967804,4.592,1807.5,1807.4,0.11917554]
[1745690968134,4.592,1807.5,1807.1,9.871527]
[1745690968304,4.592,1807.5,1807.2,5.64411126]
[1745690968505,4.592,1807.5,1807.3,5.53310927]
[1745690968808,4.592,1807.5,1807.4,0.11100161]
[1745690969208,4.592,1807.5,1807.3,5.53310927]
[1745690969409,4.592,1807.5,1807.4,0.11100161]
[1745690969715,4.592,1807.5,1807.3,5.53310927]
[1745690969912,4.592,1807.5,1807.4,5.64381117]
[1745690970127,4.592,1807.5,1807.4,0.11100161]
[1745690970328,4.592,1807.5,1807.3,6.63957431]
[1745690970528,4.592,1807.5,1807.4,0.11100161]
[1745690970754,4.592,1807.5,1807.3,6.63957431]
[1745690970951,4.592,1807.5,1807.4,0.11100161]
[1745690971450,4.592,1807.5,1807.3,6.63957431]
[1745690971639,4.592,1807.5,1807.4,0.11100161]
[1745690971952,4.592,1807.5,1807.3,1.10665066]
[1745690972153,4.592,1807.5,1807.2,5.5332529]